[Event "EYCC Open-U18 2019"]
[Site "Bratislava"]
[Date "2019.08.08"]
[Round "7.40"]
[White "Ghersinich, Enrico"]
[Black "Novosel, Marko"]
[Result "0-1"]
[ECO "A45"]
[WhiteElo "2221"]
[BlackElo "1981"]
[Annotator "NA"]
[PlyCount "60"]
[EventDate "2019.08.02"]
[EventType "swiss"]
[EventCountry "SVK"]
[SourceTitle "playchess.com"]
[Source "ChessBase"]
[SourceQuality "1"]
[TimeControl "40/5400+30:1800+30"]

1. d4 {[%emt 0:00:00]} Nf6 {[%emt 0:00:00]} 2. Bg5 {[%emt 0:00:08]} e6 {[%emt 0:00:27]} 3. e4 {[%emt 0:00:22]} Be7 {[%emt 0:00:08]} 4. Bd3 {[%emt 0:00:46]} d5 {[%emt 0:00:45]} 5. e5 {[%emt 0:01:51]} Nfd7 {[%emt 0:00:16]} 6. Bxe7 {[%emt 0:00:37]} Qxe7 {[%emt 0:00:07]} 7. Nd2 {[%emt 0:00:47]} c5 {[%emt 0:00:29]} 8. c3 {[%emt 0:00:22]} cxd4 {[%emt 0:00:53]} 9. cxd4 {[%emt 0:00:09]} Nc6 {[%emt 0:00:07]} 10. Ne2 {[%emt 0:01:30]} O-O {[%emt 0:04:23]} 11. a3 {[%emt 0:02:56]} f6 {[%emt 0:00:17]} 12. exf6 {[%emt 0:00:16]} Qxf6 {[%emt 0:00:17]} 13. Nf3 {[%emt 0:01:48]} e5 {[%emt 0:00:46]} 14. Qb3 {[%emt 0:03:42]} Nb6 {[%emt 0:00:46]} 15. dxe5 {[%emt 0:02:37]} Nxe5 {[%emt 0:00:18]} 16. Nxe5 {[%emt 0:00:12]} Qxe5 {[%emt 0:16:51]} 17. O-O {[%emt 0:00:27]} Be6 {[%emt 0:01:24]} 18. Rae1 {[%emt 0:07:36]} Rf6 {[%emt 0:03:11]} 19. Qb4 {[%emt 0:07:18]} Qg5 {[%emt 0:21:03]} 20. f4 {[%emt 0:07:04]} Qh4 {[%emt 0:05:26]} 21. Nd4 {[%emt 0:02:37]} Bd7 {[%emt 0:08:45]} 22. g3 {[%emt 0:02:31]} Qh5 {[%emt 0:03:15]} 23. Re5 {[%emt 0:00:17]} Qh3 {[%emt 0:05:53]} 24. Rf2 {[%emt 0:03:22]} Raf8 {[%emt 0:01:53]} 25. Bf1 {[%emt 0:00:28]} Qg4 {[%emt 0:08:50]} 26. Be2 {[%emt 0:00:17]} Qg6 {[%emt 0:00:07]} 27. Bh5 {[%emt 0:02:30]} Qd3 {[%emt 0:00:56]} 28. Bf3 {[%emt 0:04:51]} Kh8 {[%emt 0:02:42]} 29. Re7 {[%emt 0:04:34]} Bh3 {[%emt 0:01:13]} 30. Rd2 {[%emt 0:03:06]} Qf1# {[%emt 0:01:12]} 0-1

[Event "EYCC Open-U18 2019"]
[Site "Bratislava"]
[Date "2019.08.08"]
[Round "7.41"]
[White "Rodriguez Izquierdo, Luis"]
[Black "Veleshnja, Zino"]
[Result "1/2-1/2"]
[ECO "B90"]
[WhiteElo "2007"]
[BlackElo "2131"]
[Annotator "NA"]
[PlyCount "82"]
[EventDate "2019.08.02"]
[EventType "swiss"]
[EventCountry "SVK"]
[SourceTitle "playchess.com"]
[Source "ChessBase"]
[SourceQuality "1"]
[TimeControl "40/5400+30:1800+30"]

1. e4 {[%emt 0:00:00]} c5 {[%emt 0:00:00]} 2. Nf3 {[%emt 0:00:00]} d6 {[%emt 0:00:00]} 3. d4 {[%emt 0:00:00]} cxd4 {[%emt 0:00:00]} 4. Nxd4 {[%emt 0:00:18]} Nf6 {[%emt 0:00:00]} 5. Nc3 {[%emt 0:00:30]} a6 {[%emt 0:00:00]} 6. h3 {[%emt 0:00:20]} e5 {[%emt 0:00:00]} 7. Nde2 {[%emt 0:00:25]} h5 {[%emt 0:00:00]} 8. Bg5 {[%emt 0:00:54]} Be6 {[%emt 0:00:00]} 9. Bxf6 {[%emt 0:01:15]} Qxf6 {[%emt 0:00:00]} 10. Nd5 {[%emt 0:00:39]} Qd8 {[%emt 0:00:00]} 11. Nec3 {[%emt 0:00:45]} g6 {[%emt 0:00:44]} 12. Bc4 {[%emt 0:01:30]} Bh6 {[%emt 0:00:57]} 13. Bb3 {[%emt 0:01:12]} O-O {[%emt 0:01:12]} 14. O-O {[%emt 0:02:25]} Nc6 {[%emt 0:03:36]} 15. Qd3 {[%emt 0:02:21]} Rc8 {[%emt 0:04:33]} 16. Rad1 {[%emt 0:04:13]} Nd4 {[%emt 0:07:12]} 17. f4 {[%emt 0:07:57]} Nxb3 {[%emt 0:02:57]} 18. axb3 {[%emt 0:01:06]} Bxd5 {[%emt 0:01:52]} 19. Nxd5 {[%emt 0:01:11]} exf4 {[%emt 0:03:58]} 20. Nxf4 {[%emt 0:01:19]} Qb6+ {[%emt 0:06:45]} 21. Kh1 {[%emt 0:00:58]} Bxf4 {[%emt 0:01:38]} 22. Rxf4 {[%emt 0:00:10]} Qc5 {[%emt 0:04:12]} 23. c3 {[%emt 0:03:21]} Qg5 {[%emt 0:04:41]} 24. Qf3 {[%emt 0:06:30]} Qe7 {[%emt 0:06:33]} 25. Rf6 {[%emt 0:06:28]} Rc6 {[%emt 0:10:01]} 26. Qf4 {[%emt 0:03:27]} Rd8 {[%emt 0:02:43]} 27. Rf1 {[%emt 0:10:15]} Rd7 {[%emt 0:03:00]} 28. b4 {[%emt 0:09:34]} Rc4 {[%emt 0:07:31]} 29. Qd2 {[%emt 0:06:01]} Rxe4 {[%emt 0:10:59]} 30. Rxf7 {[%emt 0:00:51]} Qxf7 {[%emt 0:00:19]} 31. Rxf7 {[%emt 0:00:06]} Kxf7 {[%emt 0:00:22]} 32. Qh6 {[%emt 0:03:30]} Rde7 {[%emt 0:02:07]} 33. Qh7+ {[%emt 0:00:46]} Kf6 {[%emt 0:00:18]} 34. Qh8+ {[%emt 0:00:03]} Kf7 {[%emt 0:02:48]} 35. Qh7+ {[%emt 0:00:08]} Kf6 {[%emt 0:00:24]} 36. Qh8+ {[%emt 0:00:04]} Kg5 {[%emt 0:01:06]} 37. Qd8 {[%emt 0:00:26]} R4e6 {[%emt 0:00:15]} 38. Qf8 {[%emt 0:00:07]} h4 {[%emt 0:02:15]} 39. Kh2 {[%emt 0:00:25]} d5 {[%emt 0:02:15]} 40. Qd8 {[%emt 0:00:00]} Re5 {[%emt 0:00:00]} 41. Qc8 {[%emt 0:01:18]} R5e6 {[%emt 0:01:10]} 1/2-1/2

[Event "EYCC Open-U18 2019"]
[Site "Bratislava"]
[Date "2019.08.08"]
[Round "7.42"]
[White "Baranciuc, Alexandr"]
[Black "Brozyna, Mateusz"]
[Result "0-1"]
[ECO "C54"]
[WhiteElo "1901"]
[BlackElo "2258"]
[Annotator "NA"]
[PlyCount "124"]
[EventDate "2019.08.02"]
[EventType "swiss"]
[EventCountry "SVK"]
[SourceTitle "playchess.com"]
[Source "ChessBase"]
[SourceQuality "1"]
[TimeControl "40/5400+30:1800+30"]

1. e4 {[%emt 0:00:00]} e5 {[%emt 0:00:00]} 2. Nf3 {[%emt 0:00:00]} Nc6 {[%emt 0:00:00]} 3. Bc4 {[%emt 0:00:00]} Bc5 {[%emt 0:00:00]} 4. c3 {[%emt 0:00:01]} Nf6 {[%emt 0:00:00]} 5. d3 {[%emt 0:00:05]} a6 {[%emt 0:00:04]} 6. h3 {[%emt 0:00:25]} d6 {[%emt 0:00:08]} 7. Bb3 {[%emt 0:00:50]} h6 {[%emt 0:01:10]} 8. Nbd2 {[%emt 0:01:38]} Be6 {[%emt 0:00:11]} 9. O-O {[%emt 0:04:50]} O-O {[%emt 0:00:13]} 10. Re1 {[%emt 0:01:22]} Re8 {[%emt 0:00:09]} 11. Nf1 {[%emt 0:00:54]} Ba7 {[%emt 0:03:09]} 12. Ng3 {[%emt 0:01:50]} d5 {[%emt 0:00:18]} 13. exd5 {[%emt 0:14:44]} Bxd5 {[%emt 0:00:31]} 14. Ne4 {[%emt 0:03:20]} Nh5 {[%emt 0:17:24]} 15. Bxd5 {[%emt 0:05:10]} Qxd5 {[%emt 0:00:12]} 16. Nh4 {[%emt 0:02:40]} Nf4 {[%emt 0:04:36]} 17. Qg4 {[%emt 0:03:10]} Qe6 {[%emt 0:07:15]} 18. Nf5 {[%emt 0:08:02]} Qg6 {[%emt 0:10:26]} 19. Bxf4 {[%emt 0:01:02]} Qxg4 {[%emt 0:01:01]} 20. hxg4 {[%emt 0:00:10]} exf4 {[%emt 0:00:07]} 21. d4 {[%emt 0:02:15]} Kf8 {[%emt 0:09:02]} 22. Re2 {[%emt 0:14:40]} Ne7 {[%emt 0:02:31]} 23. Nxe7 {[%emt 0:00:26]} Rxe7 {[%emt 0:01:48]} 24. Rae1 {[%emt 0:00:08]} Rd8 {[%emt 0:03:30]} 25. b4 {[%emt 0:08:36]} Rd5 {[%emt 0:09:11]} 26. Nd2 {[%emt 0:01:47]} Rxe2 {[%emt 0:01:19]} 27. Rxe2 {[%emt 0:01:57]} f6 {[%emt 0:07:19]} 28. Re4 {[%emt 0:02:01]} g5 {[%emt 0:00:39]} 29. Nc4 {[%emt 0:02:18]} b5 {[%emt 0:01:51]} 30. Nb2 {[%emt 0:00:16]} Rd6 {[%emt 0:02:01]} 31. Nd3 {[%emt 0:11:24]} Kf7 {[%emt 0:01:20]} 32. f3 {[%emt 0:02:26]} a5 {[%emt 0:01:16]} 33. bxa5 {[%emt 0:03:24]} Rc6 {[%emt 0:03:21]} 34. Nc5 {[%emt 0:01:47]} Bxc5 35. dxc5 Ra6 {[%emt 0:00:49]} 36. c6 {[%emt 0:02:08]} Rxa5 {[%emt 0:00:16]} 37. Rd4 {[%emt 0:01:06]} Rxa2 {[%emt 0:04:49]} 38. Rd7+ {[%emt 0:00:08]} Ke6 {[%emt 0:03:13]} 39. Rxc7 {[%emt 0:00:04]} Rc2 {[%emt 0:01:56]} 40. Rb7 {[%emt 0:00:00]} Rxc3 41. Rxb5 {[%emt 0:02:31]} Rxc6 {[%emt 0:03:07]} 42. Kh2 {[%emt 0:00:34]} Kf7 {[%emt 0:00:50]} 43. Rb8 {[%emt 0:00:23]} Rc7 {[%emt 0:02:10]} 44. Kh3 {[%emt 0:01:22]} Kg6 {[%emt 0:00:49]} 45. Rg8+ {[%emt 0:02:32]} Rg7 {[%emt 0:00:17]} 46. Rf8 {[%emt 0:00:06]} Rh7 {[%emt 0:00:15]} 47. Rg8+ {[%emt 0:00:19]} Kf7 {[%emt 0:00:13]} 48. Ra8 {[%emt 0:02:04]} h5 {[%emt 0:02:53]} 49. Ra7+ {[%emt 0:02:52]} Kg6 {[%emt 0:00:10]} 50. Rxh7 {[%emt 0:00:05]} hxg4+ {[%emt 0:00:23]} 51. Kxg4 {[%emt 0:00:09]} f5+ {[%emt 0:00:06]} 52. Kh3 {[%emt 0:00:29]} Kxh7 {[%emt 0:00:07]} 53. Kh2 {[%emt 0:00:13]} Kg6 {[%emt 0:00:07]} 54. Kg1 {[%emt 0:00:16]} Kf6 {[%emt 0:00:15]} 55. Kf2 {[%emt 0:00:17]} Ke5 {[%emt 0:00:05]} 56. Ke2 {[%emt 0:00:03]} Kd4 {[%emt 0:00:08]} 57. Kd2 {[%emt 0:00:03]} Kc4 {[%emt 0:01:35]} 58. Kc2 {[%emt 0:00:25]} g4 {[%emt 0:00:52]} 59. Kd2 {[%emt 0:02:17]} gxf3 {[%emt 0:00:26]} 60. gxf3 {[%emt 0:00:07]} Kd4 {[%emt 0:00:07]} 61. Ke2 {[%emt 0:00:29]} Kc3 {[%emt 0:00:45]} 62. Ke1 {[%emt 0:00:41]} Kd3 {[%emt 0:00:06]} 0-1

[Event "EYCC Open-U18 2019"]
[Site "Bratislava"]
[Date "2019.08.08"]
[Round "7.43"]
[White "Marzo Pie, Xavier"]
[Black "Gray, Euan"]
[Result "1-0"]
[ECO "E33"]
[WhiteElo "2202"]
[BlackElo "2004"]
[Annotator "NA"]
[PlyCount "59"]
[EventDate "2019.08.02"]
[EventType "swiss"]
[EventCountry "SVK"]
[SourceTitle "playchess.com"]
[Source "ChessBase"]
[SourceQuality "1"]
[TimeControl "40/5400+30:1800+30"]

1. d4 {[%emt 0:00:00]} Nf6 {[%emt 0:00:00]} 2. c4 {[%emt 0:00:00]} e6 {[%emt 0:00:00]} 3. Nc3 {[%emt 0:00:00]} Bb4 {[%emt 0:00:00]} 4. Qc2 {[%emt 0:00:00]} Nc6 {[%emt 0:00:14]} 5. Nf3 {[%emt 0:00:00]} d6 {[%emt 0:00:19]} 6. a3 {[%emt 0:01:56]} Bxc3+ {[%emt 0:00:09]} 7. Qxc3 {[%emt 0:00:03]} a5 {[%emt 0:00:28]} 8. b3 {[%emt 0:04:02]} O-O {[%emt 0:01:19]} 9. Bg5 {[%emt 0:07:11]} h6 {[%emt 0:02:37]} 10. Bh4 {[%emt 0:00:17]} Nb8 {[%emt 0:06:54]} 11. e3 {[%emt 0:22:24]} Nbd7 {[%emt 0:07:06]} 12. Bd3 {[%emt 0:00:08]} Qe7 {[%emt 0:04:39]} 13. O-O {[%emt 0:00:56]} e5 {[%emt 0:02:55]} 14. dxe5 {[%emt 0:03:19]} dxe5 {[%emt 0:02:17]} 15. Bf5 {[%emt 0:01:07]} Re8 {[%emt 0:04:52]} 16. Rfd1 {[%emt 0:13:40]} Nc5 {[%emt 0:15:53]} 17. Bc2 {[%emt 0:03:15]} Bg4 {[%emt 0:01:58]} 18. b4 {[%emt 0:01:08]} Ncd7 {[%emt 0:01:59]} 19. h3 {[%emt 0:14:45]} Bh5 {[%emt 0:14:50]} 20. Bf5 {[%emt 0:01:04]} g5 {[%emt 0:06:01]} 21. Bg3 {[%emt 0:07:22]} e4 {[%emt 0:08:11]} 22. Nd4 {[%emt 0:01:22]} Bxd1 {[%emt 0:00:57]} 23. Rxd1 {[%emt 0:00:03]} axb4 {[%emt 0:00:47]} 24. axb4 {[%emt 0:00:08]} Ne5 {[%emt 0:02:28]} 25. Nb5 {[%emt 0:00:45]} Rab8 {[%emt 0:01:06]} 26. c5 {[%emt 0:02:35]} b6 {[%emt 0:01:47]} 27. c6 {[%emt 0:02:07]} Kg7 {[%emt 0:05:43]} 28. Bd7 {[%emt 0:01:23]} Nd3 {[%emt 0:04:03]} 29. Nxc7 {[%emt 0:02:18]} Rec8 {[%emt 0:01:29]} 30. Nd5 {[%emt 0:01:16]} 1-0

[Event "EYCC Open-U18 2019"]
[Site "Bratislava"]
[Date "2019.08.08"]
[Round "7.44"]
[White "Pirard, Natan"]
[Black "Durica, Adam"]
[Result "1-0"]
[ECO "B10"]
[WhiteElo "2153"]
[BlackElo "1958"]
[Annotator "NA"]
[PlyCount "85"]
[EventDate "2019.08.02"]
[EventType "swiss"]
[EventCountry "SVK"]
[SourceTitle "playchess.com"]
[Source "ChessBase"]
[SourceQuality "1"]
[TimeControl "40/5400+30:1800+30"]

1. e4 {[%emt 0:00:00]} c6 {[%emt 0:00:00]} 2. c4 {[%emt 0:00:14]} d5 {[%emt 0:03:03]} 3. exd5 {[%emt 0:00:17]} cxd5 {[%emt 0:00:10]} 4. cxd5 {[%emt 0:00:05]} Qxd5 {[%emt 0:00:37]} 5. Nc3 {[%emt 0:00:12]} Qd8 {[%emt 0:00:12]} 6. d4 {[%emt 0:00:47]} e6 {[%emt 0:01:29]} 7. Nf3 {[%emt 0:03:16]} Nf6 {[%emt 0:00:52]} 8. Be2 {[%emt 0:01:26]} Be7 {[%emt 0:04:14]} 9. O-O {[%emt 0:00:40]} O-O {[%emt 0:00:07]} 10. Bf4 {[%emt 0:04:03]} a6 {[%emt 0:00:19]} 11. Ne5 {[%emt 0:02:12]} Nbd7 {[%emt 0:06:00]} 12. Bf3 {[%emt 0:04:02]} Nb6 {[%emt 0:00:53]} 13. Bg3 {[%emt 0:02:02]} Nfd5 {[%emt 0:05:15]} 14. Qb3 {[%emt 0:01:14]} f5 {[%emt 0:15:55]} 15. Nd3 {[%emt 0:10:19]} a5 {[%emt 0:26:35]} 16. a4 {[%emt 0:29:34]} Nb4 {[%emt 0:03:34]} 17. Nf4 {[%emt 0:02:02]} Rf6 {[%emt 0:02:37]} 18. Rfe1 {[%emt 0:03:40]} Kh8 {[%emt 0:06:38]} 19. Nxe6 {[%emt 0:12:46]} Bxe6 {[%emt 0:00:24]} 20. Rxe6 {[%emt 0:00:04]} f4 {[%emt 0:00:08]} 21. Rxf6 {[%emt 0:01:00]} Bxf6 {[%emt 0:00:07]} 22. Bxf4 {[%emt 0:00:08]} Qxd4 {[%emt 0:00:06]} 23. Be3 {[%emt 0:02:07]} Qc4 {[%emt 0:00:09]} 24. Qd1 {[%emt 0:08:42]} Rd8 {[%emt 0:00:18]} 25. Qe2 {[%emt 0:00:48]} Qxe2 {[%emt 0:03:56]} 26. Bxe2 {[%emt 0:00:02]} N6d5 {[%emt 0:00:18]} 27. Nxd5 {[%emt 0:02:06]} Rxd5 {[%emt 0:05:16]} 28. Rc1 {[%emt 0:00:54]} h6 {[%emt 0:00:52]} 29. b3 {[%emt 0:00:31]} Nc6 {[%emt 0:01:14]} 30. Kf1 {[%emt 0:01:27]} Re5 {[%emt 0:03:44]} 31. Bf3 {[%emt 0:00:52]} Re6 {[%emt 0:01:53]} 32. Rc5 {[%emt 0:03:07]} Nd4 {[%emt 0:00:22]} 33. Bxb7 {[%emt 0:00:50]} Kh7 {[%emt 0:07:43]} 34. Bd5 {[%emt 0:01:04]} Rb6 {[%emt 0:00:44]} 35. Rxa5 {[%emt 0:01:00]} Rb4 {[%emt 0:01:08]} 36. Bd2 {[%emt 0:01:10]} Rb6 {[%emt 0:00:33]} 37. b4 {[%emt 0:00:31]} Rd6 {[%emt 0:00:32]} 38. Be3 {[%emt 0:01:15]} Rd7 {[%emt 0:00:29]} 39. g3 {[%emt 0:00:47]} g6 {[%emt 0:00:17]} 40. Kg2 {[%emt 0:00:00]} Bd8 {[%emt 0:00:00]} 41. Rc5 {[%emt 0:03:20]} Bb6 {[%emt 0:01:04]} 42. Bc6 {[%emt 0:01:15]} Rc7 {[%emt 0:02:23]} 43. Rc3 {[%emt 0:02:05]} 1-0

[Event "EYCC Open-U18 2019"]
[Site "Bratislava"]
[Date "2019.08.08"]
[Round "7.45"]
[White "Kizatbay, Abyl"]
[Black "Vardanyan, Aras"]
[Result "1-0"]
[ECO "A43"]
[WhiteElo "2216"]
[BlackElo "2027"]
[Annotator "NA"]
[PlyCount "91"]
[EventDate "2019.08.02"]
[EventType "swiss"]
[EventCountry "SVK"]
[SourceTitle "playchess.com"]
[Source "ChessBase"]
[SourceQuality "1"]
[TimeControl "40/5400+30:1800+30"]

1. d4 {[%emt 0:00:00]} Nf6 {[%emt 0:00:00]} 2. Nf3 {[%emt 0:00:00]} c5 {[%emt 0:00:00]} 3. d5 {[%emt 0:00:00]} b5 {[%emt 0:00:07]} 4. Bg5 {[%emt 0:00:10]} Qb6 {[%emt 0:02:05]} 5. Bxf6 {[%emt 0:00:34]} Qxf6 {[%emt 0:00:05]} 6. e4 {[%emt 0:00:12]} g6 {[%emt 0:05:47]} 7. e5 {[%emt 0:02:27]} Qb6 {[%emt 0:01:10]} 8. Nbd2 {[%emt 0:10:53]} Bb7 {[%emt 0:05:36]} 9. c4 {[%emt 0:01:23]} Bg7 {[%emt 0:04:55]} 10. Be2 {[%emt 0:13:13]} bxc4 {[%emt 0:03:25]} 11. O-O {[%emt 0:01:16]} Bxd5 {[%emt 0:01:35]} 12. Nxc4 {[%emt 0:02:13]} Bxc4 {[%emt 0:00:52]} 13. Bxc4 {[%emt 0:00:06]} O-O {[%emt 0:00:29]} 14. Re1 {[%emt 0:05:06]} Nc6 {[%emt 0:07:34]} 15. Qxd7 {[%emt 0:02:45]} Rad8 {[%emt 0:01:21]} 16. Qh3 {[%emt 0:01:10]} e6 {[%emt 0:03:45]} 17. b3 {[%emt 0:08:51]} h6 {[%emt 0:02:47]} 18. Rac1 {[%emt 0:08:03]} Nb4 {[%emt 0:03:38]} 19. Re2 {[%emt 0:03:12]} Nd3 {[%emt 0:02:20]} 20. Bxd3 {[%emt 0:01:08]} Rxd3 {[%emt 0:00:06]} 21. Qg4 {[%emt 0:05:40]} Rfd8 {[%emt 0:03:46]} 22. h4 {[%emt 0:01:27]} h5 {[%emt 0:01:35]} 23. Qf4 {[%emt 0:01:31]} Qc7 {[%emt 0:02:16]} 24. Rc4 {[%emt 0:05:07]} R8d5 {[%emt 0:01:58]} 25. Kh2 {[%emt 0:00:33]} a5 {[%emt 0:02:10]} 26. Re1 {[%emt 0:03:15]} Rd1 {[%emt 0:05:26]} 27. Re2 {[%emt 0:02:17]} Rd8 {[%emt 0:01:29]} 28. Qe3 {[%emt 0:05:20]} R1d5 {[%emt 0:00:55]} 29. g3 {[%emt 0:01:46]} Qc6 {[%emt 0:03:13]} 30. Qe4 {[%emt 0:00:48]} Rb8 {[%emt 0:03:07]} 31. Ng5 {[%emt 0:05:03]} Qd7 {[%emt 0:06:03]} 32. f4 {[%emt 0:01:43]} Rb4 {[%emt 0:00:43]} 33. Nf3 {[%emt 0:04:34]} Bf8 {[%emt 0:00:22]} 34. Kg2 {[%emt 0:00:54]} Rd1 {[%emt 0:01:28]} 35. Kf2 {[%emt 0:01:28]} Qd5 {[%emt 0:01:23]} 36. Qxd5 {[%emt 0:03:13]} exd5 {[%emt 0:00:19]} 37. Rcc2 {[%emt 0:00:31]} a4 {[%emt 0:00:38]} 38. bxa4 {[%emt 0:00:22]} Rxa4 {[%emt 0:00:44]} 39. e6 {[%emt 0:00:10]} Ra7 {[%emt 0:02:50]} 40. exf7+ {[%emt 0:00:00]} Rxf7 {[%emt 0:00:00]} 41. Re6 {[%emt 0:04:09]} Rg7 {[%emt 0:07:16]} 42. Rb2 {[%emt 0:10:18]} Re7 {[%emt 0:04:39]} 43. Rxg6+ {[%emt 0:00:46]} Kf7 {[%emt 0:00:06]} 44. Rbb6 {[%emt 0:04:11]} Ra7 {[%emt 0:01:36]} 45. Ne5+ {[%emt 0:01:05]} Ke7 {[%emt 0:00:45]} 46. Nc6+ {[%emt 0:02:02]} 1-0

[Event "EYCC Open-U18 2019"]
[Site "Bratislava"]
[Date "2019.08.08"]
[Round "7.46"]
[White "Polczyk, Mikolaj"]
[Black "Ihnat, Marek"]
[Result "1-0"]
[ECO "A31"]
[WhiteElo "2111"]
[BlackElo "1946"]
[Annotator "NA"]
[PlyCount "59"]
[EventDate "2019.08.02"]
[EventType "swiss"]
[EventCountry "SVK"]
[SourceTitle "playchess.com"]
[Source "ChessBase"]
[SourceQuality "1"]
[TimeControl "40/5400+30:1800+30"]

1. Nf3 {[%emt 0:00:00]} Nf6 {[%emt 0:00:00]} 2. c4 {[%emt 0:00:00]} c5 {[%emt 0:00:00]} 3. d4 {[%emt 0:00:22]} cxd4 {[%emt 0:00:45]} 4. Nxd4 {[%emt 0:00:06]} Nc6 {[%emt 0:00:50]} 5. Nc3 {[%emt 0:00:20]} g6 {[%emt 0:00:28]} 6. e4 {[%emt 0:00:07]} d6 {[%emt 0:00:07]} 7. f3 {[%emt 0:06:30]} Nxd4 {[%emt 0:00:08]} 8. Qxd4 {[%emt 0:00:09]} Bg7 {[%emt 0:00:04]} 9. Be3 {[%emt 0:01:05]} O-O {[%emt 0:00:42]} 10. Qd2 {[%emt 0:00:12]} a5 {[%emt 0:00:21]} 11. Rc1 {[%emt 0:06:36]} a4 {[%emt 0:00:08]} 12. Be2 {[%emt 0:02:36]} Qa5 {[%emt 0:00:09]} 13. O-O {[%emt 0:03:16]} Be6 {[%emt 0:00:05]} 14. Nd5 {[%emt 0:09:16]} Bxd5 {[%emt 0:15:50]} 15. Qxa5 {[%emt 0:01:04]} Rxa5 {[%emt 0:00:13]} 16. cxd5 {[%emt 0:00:35]} Ne8 {[%emt 0:05:22]} 17. Rc8 {[%emt 0:09:06]} b5 {[%emt 0:04:51]} 18. Bd2 {[%emt 0:05:17]} Bd4+ {[%emt 0:03:04]} 19. Kh1 {[%emt 0:00:04]} Ra7 {[%emt 0:00:35]} 20. Bxb5 {[%emt 0:03:43]} Nc7 {[%emt 0:02:58]} 21. Rxf8+ {[%emt 0:00:18]} Kxf8 {[%emt 0:00:07]} 22. Bh6+ {[%emt 0:06:01]} Kg8 {[%emt 0:01:15]} 23. Rc1 {[%emt 0:04:12]} Bxb2 {[%emt 0:01:45]} 24. Rc4 {[%emt 0:05:47]} a3 {[%emt 0:04:11]} 25. Bc6 {[%emt 0:05:11]} Bg7 {[%emt 0:04:33]} 26. Be3 {[%emt 0:00:51]} Ra6 {[%emt 0:02:29]} 27. Bb7 {[%emt 0:00:43]} Ra5 {[%emt 0:01:55]} 28. Rxc7 {[%emt 0:00:09]} Rb5 {[%emt 0:00:21]} 29. Rc8+ {[%emt 0:00:54]} Bf8 {[%emt 0:00:09]} 30. h4 {[%emt 0:00:40]} 1-0

[Event "EYCC Open-U18 2019"]
[Site "Bratislava"]
[Date "2019.08.08"]
[Round "7.47"]
[White "Varga, Lukas"]
[Black "Kaspar, Lukas"]
[Result "1-0"]
[ECO "C00"]
[WhiteElo "2046"]
[BlackElo "1886"]
[Annotator "NA"]
[PlyCount "59"]
[EventDate "2019.08.02"]
[EventType "swiss"]
[EventCountry "SVK"]
[SourceTitle "playchess.com"]
[Source "ChessBase"]
[SourceQuality "1"]
[TimeControl "40/5400+30:1800+30"]

1. e4 {[%emt 0:00:00]} e6 {[%emt 0:00:00]} 2. Qe2 {[%emt 0:00:00]} b6 {[%emt 0:03:49]} 3. g3 {[%emt 0:02:48]} Bb7 {[%emt 0:00:18]} 4. Bg2 {[%emt 0:00:13]} Nf6 {[%emt 0:02:32]} 5. f4 {[%emt 0:00:41]} Be7 {[%emt 0:07:08]} 6. d3 {[%emt 0:15:41]} d5 {[%emt 0:08:12]} 7. e5 {[%emt 0:01:59]} Nfd7 {[%emt 0:00:23]} 8. Nh3 {[%emt 0:03:06]} c5 {[%emt 0:07:53]} 9. O-O {[%emt 0:01:09]} Nc6 {[%emt 0:01:14]} 10. Be3 {[%emt 0:05:17]} Qc7 {[%emt 0:01:29]} 11. c4 {[%emt 0:02:45]} d4 {[%emt 0:05:20]} 12. Bf2 {[%emt 0:00:53]} O-O {[%emt 0:01:02]} 13. Nd2 {[%emt 0:00:56]} a6 {[%emt 0:00:45]} 14. g4 {[%emt 0:05:58]} b5 {[%emt 0:07:50]} 15. Bg3 {[%emt 0:02:09]} Na5 {[%emt 0:06:30]} 16. Rac1 {[%emt 0:04:53]} Bxg2 {[%emt 0:14:08]} 17. Qxg2 {[%emt 0:00:12]} Qc6 {[%emt 0:01:15]} 18. Ne4 {[%emt 0:02:07]} bxc4 {[%emt 0:04:42]} 19. dxc4 {[%emt 0:01:01]} Qc7 {[%emt 0:04:18]} 20. f5 {[%emt 0:06:51]} Qd8 {[%emt 0:07:21]} 21. Nf4 {[%emt 0:03:27]} Nxe5 {[%emt 0:03:30]} 22. f6 {[%emt 0:09:22]} gxf6 {[%emt 0:03:30]} 23. Nh5 {[%emt 0:03:06]} Nd7 {[%emt 0:03:23]} 24. Bh4 {[%emt 0:00:19]} Rb8 {[%emt 0:02:49]} 25. Nexf6+ {[%emt 0:02:01]} Nxf6 {[%emt 0:00:27]} 26. Nxf6+ {[%emt 0:00:10]} Kg7 {[%emt 0:00:51]} 27. Qe4 {[%emt 0:01:22]} Rh8 {[%emt 0:00:40]} 28. Qe5 {[%emt 0:00:15]} Nc6 {[%emt 0:00:50]} 29. Qg5+ {[%emt 0:01:23]} Kf8 {[%emt 0:00:10]} 30. Qh6# 1-0

[Event "EYCC Open-U18 2019"]
[Site "Bratislava"]
[Date "2019.08.08"]
[Round "7.48"]
[White "Winkin, Pol"]
[Black "Gloser, David"]
[Result "1/2-1/2"]
[ECO "B15"]
[WhiteElo "1840"]
[BlackElo "2123"]
[Annotator "NA"]
[PlyCount "58"]
[EventDate "2019.08.02"]
[EventType "swiss"]
[EventCountry "SVK"]
[SourceTitle "playchess.com"]
[Source "ChessBase"]
[SourceQuality "1"]
[TimeControl "40/5400+30:1800+30"]

1. e4 {[%emt 0:00:00]} c6 {[%emt 0:00:00]} 2. d4 {[%emt 0:00:00]} d5 {[%emt 0:00:00]} 3. Nc3 {[%emt 0:00:00]} g6 {[%emt 0:00:22]} 4. Nf3 {[%emt 0:00:05]} Bg7 {[%emt 0:00:25]} 5. h3 {[%emt 0:00:06]} Nh6 {[%emt 0:00:59]} 6. Bf4 {[%emt 0:05:04]} f6 {[%emt 0:00:20]} 7. Be2 {[%emt 0:03:47]} Nf7 {[%emt 0:00:51]} 8. Qd2 {[%emt 0:12:46]} O-O {[%emt 0:02:27]} 9. O-O {[%emt 0:01:05]} e6 {[%emt 0:02:46]} 10. Rfe1 {[%emt 0:01:39]} Nd7 {[%emt 0:03:32]} 11. Bf1 {[%emt 0:03:49]} e5 {[%emt 0:12:41]} 12. Bh2 {[%emt 0:05:16]} Bh6 {[%emt 0:08:19]} 13. Qd1 {[%emt 0:01:59]} dxe4 {[%emt 0:02:31]} 14. dxe5 {[%emt 0:06:41]} exf3 {[%emt 0:09:17]} 15. e6 {[%emt 0:00:19]} Nfe5 {[%emt 0:01:58]} 16. exd7 {[%emt 0:05:28]} Bxd7 {[%emt 0:01:07]} 17. gxf3 {[%emt 0:01:35]} Qc8 {[%emt 0:08:55]} 18. Bxe5 {[%emt 0:07:51]} fxe5 {[%emt 0:00:12]} 19. Rxe5 {[%emt 0:00:21]} Bxh3 {[%emt 0:08:21]} 20. Bc4+ {[%emt 0:01:47]} Kh8 {[%emt 0:00:18]} 21. Ne4 {[%emt 0:00:51]} Bg7 {[%emt 0:03:10]} 22. Re7 {[%emt 0:00:36]} Qf5 {[%emt 0:08:47]} 23. Be6 {[%emt 0:12:36]} Qe5 {[%emt 0:03:30]} 24. Rxg7 {[%emt 0:04:35]} Bxe6 {[%emt 0:00:28]} 25. Rxb7 {[%emt 0:00:22]} Rf4 {[%emt 0:02:29]} 26. Qd6 {[%emt 0:04:28]} Qxd6 {[%emt 0:03:16]} 27. Nxd6 {[%emt 0:00:02]} Rxf3 {[%emt 0:01:25]} 28. Re1 {[%emt 0:00:43]} Bg8 {[%emt 0:00:36]} 29. Ree7 {[%emt 0:00:50]} a5 {[%emt 0:02:15]} 1/2-1/2